bitfinex-derivatives/quotes_ETHF0:USTF0_20250702
["timestamp","ask_amount","ask_price","bid_price","bid_amount"]
[1751483575030,40.10491,2572.3,2572.1,0.77716]
[1751483575230,40.10491,2572.3,2572.0,0.77717]
[1751483575533,0.77714,2572.2,2572.0,0.77717]
[1751483575733,40.10493,2572.3,2571.7,2.6007]
[1751483575933,0.77714,2572.2,2572.0,0.77719]
[1751483576231,0.77714,2572.2,2571.9,0.77722]
[1751483576436,1.2853,2572.2,2571.7,2.6007]
[1751483576736,38.77432,2572.3,2572.1,0.77717]
[1751483576934,37.9972,2572.3,2572.1,0.77717]
[1751483577235,37.9972,2572.3,2572.0,0.77717]
[1751483577436,1.3962,2572.3,2572.1,0.77716]
[1751483577637,37.9952,2572.3,2572.1,0.77716]
[1751483577931,0.6963,2572.3,2572.2,0.77714]
[1751483578230,0.6963,2572.3,2572.0,0.77718]
[1751483578430,1.3344,2572.2,2572.0,0.77718]
[1751483578738,1.3344,2572.2,2571.7,2.60071]
[1751483578739,1.9928,2572.2,2571.7,0.77727]
[1751483578934,0.77724,2571.9,2571.3,9.67770086]
[1751483579140,0.77724,2571.9,2571.7,0.77728]
[1751483579339,0.77726,2571.8,2571.6,0.7773]
[1751483579532,0.77725,2571.9,2571.7,0.77729]
[1751483579732,0.77722,2572.0,2571.7,0.77729]
[1751483579932,1.3344,2572.0,2571.7,0.77729]
[1751483580238,1.89349593,2571.9,2571.7,0.77728]
[1751483580439,1.11626593,2571.8,2571.7,0.77728]
[1751483580739,1.11626593,2571.8,2571.5,0.77733]
[1751483580934,3.19636593,2571.7,2571.6,0.77732]
[1751483581338,1.79356593,2571.7,2571.6,0.77732]
[1751483583138,2.57086593,2571.7,2571.5,0.77732]
[1751483583334,1.4546,2571.7,2571.5,0.77732]
[1751483583531,1.4546,2571.7,2571.1,10.35381086]
[1751483583532,0.77732,2571.6,2571.4,0.77736]
[1751483583732,0.77732,2571.6,2571.1,3.31252]
[1751483583932,2.0065,2571.6,2571.1,3.31252]
[1751483584132,2.0065,2571.6,2571.5,0.77735]
[1751483584332,3.12106849,2571.6,2571.5,0.77735]
[1751483584640,3.89838849,2571.6,2571.4,0.77736]
[1751483584840,2.78382,2571.6,2571.4,0.77736]
[1751483585141,2.0065,2571.6,2571.5,0.77735]
[1751483585342,2.78382,2571.6,2571.4,0.77736]
[1751483585642,2.0065,2571.6,2571.4,0.77736]
[1751483585841,2.0065,2571.6,2571.5,0.77735]
[1751483588840,0.6773,2571.7,2571.6,0.77732]
[1751483589045,38.37600133,2571.7,2571.6,0.77732]
[1751483589347,37.2653,2571.7,2571.6,0.77732]
[1751483589741,37.2653,2571.7,2571.2,1.4045]
[1751483589943,0.6773,2571.7,2571.2,1.4045]
[1751483590148,0.6773,2571.7,2571.6,0.77732]
[1751483590149,37.2643,2571.7,2571.6,0.77732]
[1751483590340,0.6773,2571.7,2571.6,0.77732]
[1751483590540,36.587,2571.9,2571.8,0.77726]
[1751483591848,0.7056,2572.0,2571.9,0.77723]
[1751483592049,37.2926,2572.0,2571.9,0.77723]
[1751483592245,37.2926,2572.0,2571.6,2.6338]
[1751483592446,0.7056,2572.0,2571.9,0.77723]
[1751483592652,37.2896,2572.0,2571.9,0.77723]
[1751483592948,0.7056,2572.0,2571.9,0.77723]
[1751483593151,0.6582,2572.2,2572.1,0.77717]
[1751483593353,2.0998,2572.5,2571.9,1.94304]
[1751483593653,1.11003369,2572.4,2572.3,0.77711]
[1751483594246,1.88711369,2572.4,2572.3,0.77711]
[1751483594448,0.77713,2572.3,2572.1,0.77716]
[1751483594646,0.77719,2572.1,2571.8,0.77724]
[1751483594848,0.77719,2572.1,2571.6,1.3368]
[1751483594849,37.35819,2572.1,2571.6,1.3368]
[1751483595047,36.581,2572.1,2571.6,2.6168]
[1751483595245,0.77727,2571.8,2571.6,0.6905]
[1751483595445,0.77729,2571.7,2571.5,0.77733]
[1751483595649,0.77728,2571.8,2571.6,0.77732]
[1751483595853,0.77725,2571.9,2571.7,0.77729]
[1751483596154,2.14305,2571.9,2571.7,0.77729]
[1751483596355,0.77727,2571.8,2571.3,3.91549]
[1751483596555,2.14307,2571.8,2571.6,0.77729]
[1751483596854,1.3658,2571.8,2571.7,0.77729]
[1751483597356,0.77726,2571.8,2571.6,4.16332042]
[1751483597555,0.77726,2571.8,2571.7,0.77729]
[1751483597755,0.77725,2571.9,2571.6,3.38603042]
[1751483598057,1.3495,2572.0,2571.8,0.77724]
[1751483598256,1.8873462,2571.9,2571.7,0.77727]
[1751483598458,0.77725,2571.9,2571.7,0.77727]
[1751483598659,2.18855,2571.9,2571.7,0.77727]
[1751483598959,2.18855,2571.9,2571.8,0.77726]
[1751483599152,3.29919862,2571.9,2571.7,0.77726]
[1751483599354,1.11150321,2571.8,2571.7,0.77726]
[1751483599564,1.88876321,2571.8,2571.7,0.77726]
[1751483599754,1.11150321,2571.8,2571.7,0.77729]
[1751483607057,38.69571,2572.0,2571.8,0.77726]
[1751483607264,1.11392304,2571.9,2571.8,4.16329042]
[1751483609463,0.77705,2572.5,2572.4,0.77707]
[1751483609662,1.11413248,2572.5,2572.4,0.77707]
[1751483609862,0.77708,2572.4,2572.1,3.38603042]
[1751483610162,1.11413248,2572.3,2572.2,0.77714]
[1751483615771,2.52883248,2572.3,2572.2,0.77714]
[1751483616766,1.11413248,2572.3,2572.2,0.77714]
[1751483617162,37.1968,2572.6,2572.5,0.77704]
[1751483617362,38.3087725,2572.6,2572.5,4.16307042]
[1751483617563,1.7717725,2572.6,2572.5,4.16307042]
[1751483617768,1.7717725,2572.6,2572.5,0.77704]
[1751483617964,2.5487825,2572.6,2572.5,0.77704]
[1751483618165,3.1351725,2572.6,2572.2,3.38603042]
[1751483618370,1.1119725,2572.5,2572.4,0.77705]
[1751483618577,1.9427,2572.4,2572.0,0.77718]
[1751483618767,0.77718,2572.1,2571.9,0.77721]
[1751483619075,1.1119725,2572.0,2571.9,0.77721]
[1751483619264,1.3634,2572.3,2572.1,0.77717]
[1751483619469,1.3634,2572.3,2571.5,2.6481]
[1751483619470,36.532,2572.1,2571.5,4.69093042]
[1751483619772,3.25787559,2572.0,2571.8,0.77725]
[1751483619973,1.11465559,2571.9,2571.8,0.77725]
[1751483620367,1.89188559,2571.9,2571.8,0.77725]
[1751483620562,1.11465559,2571.9,2571.8,0.77725]
[1751483620771,1.89188559,2571.9,2571.5,4.69093042]
[1751483620973,1.11465559,2571.8,2571.5,4.69093042]
[1751483621468,1.11465559,2571.8,2571.7,0.77729]
[1751483622168,0.77723,2571.9,2571.7,0.77727]
[1751483622367,0.77723,2571.9,2571.8,0.77726]
[1751483622368,3.25807956,2571.9,2571.8,0.77726]
[1751483623170,0.77726,2571.8,2571.5,4.69093042]
[1751483623368,1.11488762,2571.7,2571.6,0.7773]
[1751483625169,1.11488762,2571.7,2571.3,3.38603042]
[1751483625473,0.7773,2571.7,2571.3,5.32953042]
[1751483625673,2.1064,2571.7,2571.6,0.77732]
[1751483625873,3.22125173,2571.7,2571.3,5.32953042]
[1751483626074,2.1064,2571.7,2571.6,0.77732]
[1751483626374,3.22186654,2571.7,2571.6,0.77732]
[1751483626575,2.44456654,2571.7,2571.6,0.77732]
[1751483628471,0.77733,2571.6,2571.5,0.77732]
[1751483628670,40.39089654,2571.6,2571.5,0.77732]
[1751483629470,39.61356654,2571.6,2571.0,1.94375]
[1751483629672,0.77738,2571.4,2571.3,0.77739]
[1751483629874,39.27544,2571.6,2571.5,0.77735]
[1751483630179,0.77735,2571.5,2571.4,0.77736]
[1751483630475,1.89312448,2571.5,2571.4,0.77736]
[1751483630674,0.77738,2571.4,2571.3,0.77738]
[1751483630974,1.11577448,2571.4,2570.8,3.2887]
[1751483631175,2.43867448,2571.3,2571.0,0.77748]
[1751483631479,1.94375,2571.0,2570.0,3.38603042]
[1751483631669,6.5941049,2570.9,2570.5,0.77765]
[1751483631976,0.77763,2570.6,2570.4,0.77766]
[1751483632170,37.28764,2570.6,2570.4,0.77766]
[1751483632374,3.8871,2571.3,2570.4,0.77766]
[1751483632375,2.32651808,2571.4,2571.1,0.77747]
[1751483632566,0.7773,2571.7,2571.3,3.38603042]
[1751483632767,37.98124,2571.9,2571.4,3.38603042]
[1751483632971,1.11403473,2571.8,2571.6,0.77731]
[1751483633170,1.11403473,2571.7,2571.6,0.77731]
[1751483633369,37.62603473,2571.7,2571.6,0.77731]
[1751483634478,37.62503473,2571.7,2571.6,0.77731]
[1751483634780,1.11403473,2571.7,2571.6,0.77731]
[1751483634978,0.695,2571.9,2571.8,0.77726]
[1751483635178,38.29089902,2571.9,2571.8,0.77726]
[1751483638378,1.78089902,2571.9,2571.8,4.16329042]
[1751483638584,38.28689902,2571.9,2571.8,4.16329042]
[1751483638784,37.201,2571.9,2571.8,4.16329042]
[1751483640387,55.985,2572.4,2572.3,0.77711]
[1751483640684,0.77716,2572.2,2572.0,0.77719]
[1751483640984,3.15943493,2572.1,2572.0,0.77719]
[1751483642092,1.76583493,2572.1,2572.0,0.77719]
[1751483642993,38.26883493,2572.1,2572.0,0.77719]
[1751483643494,37.58523493,2572.1,2572.0,4.16322042]
[1751483644593,1.08523493,2572.1,2572.0,4.16322042]
[1751483644794,55.985,2572.4,2572.3,0.77709]
[1751483644995,93.56718294,2572.4,2572.3,0.77709]
[1751483645290,93.56718294,2572.4,2571.9,0.6689]
[1751483645492,3.38603042,2572.2,2572.1,0.77713]
[1751483645696,4.47121336,2572.2,2572.1,0.77713]
[1751483645996,4.47121336,2572.2,2571.6,0.00583317]
[1751483645997,0.77728,2571.7,2571.6,0.00583317]
[1751483646192,40.65931042,2571.7,2571.6,0.00583317]
[1751483646392,39.88203042,2571.7,2571.6,0.78314317]
[1751483646594,40.96773705,2571.7,2571.6,0.78314317]
[1751483646994,41.74501705,2571.7,2571.6,0.78314317]
[1751483649595,37.58170663,2571.7,2571.6,0.78314317]
[1751483652900,38.35898663,2571.7,2571.6,0.78314317]
[1751483653603,1.94328,2571.6,2571.1,1.2905]
[1751483653801,1.94328,2571.6,2570.3,3.81949502]
[1751483653802,0.77747,2571.1,2570.7,1.94389]
[1751483653999,36.49,2571.1,2571.0,0.77746]
[1751483654501,36.489,2571.1,2571.0,0.77749]
[1751483654701,37.26646,2571.1,2571.0,0.77749]
[1751483655306,37.26648,2571.1,2571.0,0.77748]
[1751483655505,36.489,2571.1,2571.0,0.77748]
[1751483655803,37.56762779,2571.1,2571.0,0.77748]
[1751483656005,36.489,2571.1,2571.0,0.77748]
[1751483656204,0.77743,2571.2,2571.1,0.77745]
[1751483656404,38.34303162,2571.2,2571.1,0.77745]
[1751483657203,1.85603162,2571.2,2571.1,0.77745]
[1751483657502,1.07860162,2571.2,2571.1,0.77745]
[1751483657703,37.56560162,2571.2,2571.1,0.77745]
[1751483658203,0.77747,2571.1,2571.0,0.77746]
[1751483658404,0.77747,2571.1,2570.9,0.77749]
[1751483658405,0.77748,2571.0,2570.9,0.77749]
[1751483658607,4.16351042,2571.0,2570.9,0.77749]
[1751483658807,1.0781865,2571.0,2570.9,0.77749]
[1751483659101,1.3465,2571.3,2571.2,0.77742]
[1751483659298,38.23901044,2571.3,2571.2,0.77742]
[1751483659707,39.01640044,2571.3,2571.2,0.77742]
[1751483660301,39.01640044,2571.3,2570.8,6.72224042]
[1751483660302,41.62504086,2571.3,2570.8,6.72224042]
[1751483660502,1.85544044,2571.2,2571.1,0.77743]
[1751483660706,1.07801044,2571.2,2571.1,0.77743]
[1751483661005,37.56301044,2571.2,2571.1,0.77743]
[1751483661709,1.07801044,2571.2,2571.1,0.77743]
[1751483661903,37.56201044,2571.2,2571.1,0.77743]
[1751483662804,38.33943044,2571.2,2571.1,0.77743]
[1751483663407,1.07801044,2571.2,2571.1,0.77743]
[1751483663608,37.56201044,2571.2,2571.1,0.77743]
[1751483664207,1.07801044,2571.2,2571.1,0.77743]
[1751483664410,37.55901044,2571.2,2571.1,0.77743]
[1751483665309,1.07801044,2571.2,2571.1,0.77743]
[1751483665509,37.55801044,2571.2,2571.1,0.77743]
[1751483665912,36.48,2571.2,2571.1,2.09863]
[1751483666306,0.6832,2571.6,2571.5,0.77733]
[1751483666508,1.07871413,2571.6,2571.5,4.16336042]
[1751483666712,36.479,2571.7,2571.6,0.7773]
[1751483666913,37.55783798,2571.7,2571.6,0.7773]
[1751483667512,1.45468,2572.0,2571.9,0.77721]
[1751483667712,2.53354244,2572.0,2571.9,0.77721]
[1751483667913,0.77722,2571.9,2571.8,0.77722]
[1751483668114,1.07886244,2571.9,2571.8,0.77722]
[1751483668514,1.85607244,2571.9,2571.8,0.77722]
[1751483668916,1.07886244,2571.9,2571.8,0.77722]
[1751483671417,37.54886244,2571.9,2571.8,0.77722]
[1751483671613,1.07886244,2571.9,2571.8,0.77722]
[1751483671816,36.468,2572.0,2571.9,0.77721]
[1751483672017,37.54594694,2572.0,2571.9,4.16324042]
[1751483672211,1.07794694,2572.0,2571.9,4.16324042]
[1751483672414,36.468,2572.0,2571.9,4.16324042]
[1751483672615,57.46217,2572.4,2572.3,0.77709]
[1751483672813,95.00754645,2572.4,2572.3,0.77709]
[1751483673318,0.77711,2572.3,2572.2,0.77709]
[1751483673518,1.85554391,2572.3,2572.2,0.77709]
[1751483674313,1.07843391,2572.3,2572.2,0.77709]
[1751483674518,37.54243391,2572.3,2572.2,0.77709]
[1751483674720,1.07843391,2572.3,2572.2,0.77709]
[1751483674919,37.53943391,2572.3,2572.2,0.77709]
[1751483675122,1.07843391,2572.3,2572.2,0.77709]
[1751483676218,36.459,2572.4,2572.3,0.77709]
[1751483676413,37.53656037,2572.4,2572.3,0.77709]
[1751483676919,36.459,2572.4,2572.3,0.77709]
[1751483677118,36.459,2572.4,2572.3,2.13629]
[1751483677720,0.77701,2572.6,2572.5,0.77703]
[1751483677915,37.53299737,2572.6,2572.5,0.77703]
[1751483678620,37.52899737,2572.6,2572.5,0.77703]
[1751483678922,0.6852,2572.7,2572.6,0.777]
[1751483679120,38.21846344,2572.7,2572.6,0.777]
[1751483679522,1.76646344,2572.7,2572.6,0.777]
[1751483679721,38.21746344,2572.7,2572.6,0.777]
[1751483680615,1.76646344,2572.7,2572.6,0.777]
[1751483680818,38.21246344,2572.7,2572.6,0.777]
[1751483681221,37.1312,2572.7,2572.6,0.777]
[1751483684725,0.6852,2572.7,2572.6,0.777]
[1751483686330,1.46217,2572.7,2572.6,0.777]
[1751483687433,0.77703,2572.6,2572.2,1.3748]
[1751483687627,4.16306042,2572.6,2572.5,0.77703]
[1751483688627,2.061,2572.7,2572.6,0.777]
[1751483688829,0.6852,2572.7,2572.6,0.777]
[1751483690534,0.6852,2572.7,2572.6,4.16303042]
[1751483690734,0.684,2573.0,2572.9,0.77691]
[1751483690934,37.11,2573.0,2572.9,0.77691]
[1751483691135,0.684,2573.0,2572.9,0.77691]
[1751483691329,37.109,2573.0,2572.9,0.77691]
[1751483692738,37.107,2573.0,2572.9,0.77691]
[1751483694339,37.88388,2573.0,2572.9,0.77691]
[1751483694639,37.107,2573.0,2572.9,0.77691]
[1751483694835,0.684,2573.0,2572.9,0.77691]
[1751483695036,0.6425,2573.1,2573.0,0.77688]
[1751483695238,37.0585,2573.1,2573.0,0.77688]
[1751483695435,0.6425,2573.1,2573.0,0.77688]
[1751483695638,36.415,2573.2,2573.0,0.77688]
[1751483695937,4.26555703,2573.8,2573.0,0.77688]
[1751483695938,2.32391703,2573.9,2573.8,0.77664]
[1751483696137,0.6876,2574.2,2574.0,0.77656]
[1751483696339,3.38603042,2574.1,2573.5,0.6469]
[1751483696635,3.38603042,2573.9,2573.8,0.77663]
[1751483697240,37.7722,2574.1,2573.6,5.32776042]
[1751483697442,0.6876,2574.2,2574.1,0.77654]
[1751483697641,2.5419838,2574.2,2574.1,0.77654]
[1751483697846,0.77655,2574.1,2574.0,0.77656]
[1751483698041,1.3612,2574.1,2574.0,0.77656]
[1751483698539,2.13774,2574.1,2574.0,0.77656]
[1751483698732,1.3612,2574.1,2573.9,0.77659]
[1751483698932,2.13775,2574.1,2574.0,0.77657]
[1751483699138,1.3612,2574.1,2574.0,0.77657]
[1751483699338,2.13774,2574.1,2574.0,0.77657]
[1751483699538,0.77658,2574.0,2573.6,6.72835042]
[1751483699740,0.77658,2574.0,2573.9,0.7766]
[1751483700343,0.77659,2574.0,2573.9,0.77659]
[1751483700744,0.77661,2573.9,2573.8,0.77661]
[1751483701340,1.47811,2573.9,2573.8,0.77661]
[1751483701537,0.7015,2573.9,2573.8,0.77661]
[1751483702346,0.77656,2574.1,2574.0,0.77655]
[1751483703043,4.71123042,2574.2,2573.5,2.6655]
[1751483703245,3.38603042,2573.9,2573.5,2.6655]
[1751483703446,1.41425,2573.8,2573.7,0.77663]
[1751483703841,0.6376,2573.8,2573.7,0.77663]
[1751483704347,1.41423,2573.8,2573.7,0.77663]
[1751483704544,0.6376,2573.8,2573.7,0.77663]
[1751483704747,1.41423,2573.8,2573.7,0.77663]
[1751483705044,0.77669,2573.6,2573.5,0.676]
[1751483705240,0.77669,2573.6,2573.5,1.45269]
[1751483705441,0.6876,2574.2,2573.8,1.94158]
[1751483705642,0.6876,2574.2,2574.1,0.77654]
[1751483705842,0.77647,2574.4,2574.3,0.77647]
[1751483706044,1.85122875,2574.4,2574.3,0.77647]
[1751483706246,0.7765,2574.3,2574.2,0.77649]
[1751483706441,1.07475875,2574.3,2574.2,0.77649]
[1751483706740,1.85123875,2574.3,2574.2,0.77649]
[1751483707644,1.85123875,2574.3,2573.9,3.2912]
[1751483707645,1.07475875,2574.3,2573.9,0.6529]
[1751483707845,0.77669,2573.7,2573.6,0.77665]
[1751483708144,4.16269042,2573.7,2573.6,0.77665]
[1751483708946,0.77676,2573.4,2573.3,1.43525]
[1751483709146,1.3148,2573.6,2573.3,0.6585]
[1751483709346,0.77676,2573.5,2573.4,0.77674]
[1751483709548,3.38603042,2573.5,2573.0,0.6585]
[1751483709751,0.77684,2573.2,2573.1,0.77683]
[1751483710143,0.77686,2573.1,2573.0,0.77685]
[1751483710345,0.77689,2573.0,2572.9,0.77689]
[1751483710550,3.38603042,2573.2,2572.6,6.00611042]
[1751483710747,0.77685,2573.1,2573.0,0.77685]
[1751483711549,0.77685,2573.1,2572.7,1.9424]
[1751483711749,0.77688,2573.0,2572.9,0.77689]
[1751483712849,1.372,2573.2,2572.9,0.7769]
[1751483713053,0.77689,2573.0,2572.9,0.7769]
[1751483713750,0.77689,2573.0,2572.8,0.77692]
[1751483713950,0.77689,2573.0,2572.9,0.77691]
[1751483714852,0.77689,2573.0,2572.8,0.77691]
[1751483715153,0.77691,2572.9,2572.8,0.77691]
[1751483715348,0.777,2572.6,2572.5,1.42941]
[1751483715549,7.03595463,2572.9,2572.6,0.77699]
[1751483715755,0.777,2572.6,2572.5,0.777]
[1751483716153,1.2801,2572.8,2572.2,2.055]
[1751483716350,0.77704,2572.5,2572.4,0.77704]
[1751483716550,0.77701,2572.6,2572.5,0.77702]
[1751483716751,0.77704,2572.5,2572.4,0.77704]
[1751483717350,0.77702,2572.6,2572.5,0.77702]
[1751483717854,1.44849,2572.7,2572.6,0.777]
[1751483718154,0.77701,2572.6,2572.5,0.77701]
[1751483718555,1.44849,2572.7,2572.6,0.777]
[1751483718755,0.6715,2572.7,2572.6,0.777]
[1751483719055,1.44847,2572.7,2572.6,0.777]
[1751483719452,0.6715,2572.7,2572.6,0.777]
[1751483719652,1.44847,2572.7,2572.6,0.777]
[1751483720252,0.6715,2572.7,2572.6,0.777]
[1751483720453,1.44847,2572.7,2572.6,0.777]
[1751483721455,0.77701,2572.6,2572.5,0.777]
[1751483721757,0.77705,2572.5,2572.4,0.77704]
[1751483722457,0.77702,2572.6,2572.5,0.77703]
[1751483722657,0.77702,2572.6,2572.4,0.77703]
[1751483722857,0.77703,2572.5,2572.4,0.77703]
[1751483723558,0.77703,2572.5,2572.2,2.0506]
[1751483723559,0.77714,2572.2,2572.1,0.77713]
[1751483723954,0.77711,2572.3,2572.2,0.77709]
[1751483724156,1.39,2572.6,2572.3,0.77706]
[1751483724355,1.39,2572.6,2572.1,1.94286]
[1751483724557,36.366,2572.5,2572.4,7.81301463]
[1751483724855,0.77707,2572.4,2572.3,0.77706]
[1751483728159,37.14305,2572.5,2572.4,0.77706]
[1751483729268,0.6715,2572.7,2572.6,0.777]
[1751483729460,36.362,2572.8,2572.7,0.77697]
[1751483729659,36.362,2572.8,2572.4,1.44174]
[1751483729861,36.362,2572.8,2572.5,1.2927]
[1751483730062,0.6537,2572.9,2572.5,1.2927]
[1751483730262,0.6537,2572.9,2572.5,9.10565463]
[1751483730462,0.77696,2572.8,2572.6,0.77698]
[1751483730662,0.77696,2572.8,2572.7,1.2927]
[1751483731560,1.94235,2572.8,2572.2,0.6895]
[1751483731761,7.03595463,2572.4,2571.4,7.03595463]
[1751483731960,0.7773,2571.6,2571.5,0.6808]
[1751483732865,0.7773,2571.6,2571.5,0.7773]
[1751483733069,0.77726,2571.8,2571.7,0.77726]
[1751483733565,0.6901,2571.9,2571.4,8.97934463]
[1751483733765,36.355,2571.9,2571.8,0.77724]
[1751483734265,1.46723,2572.2,2571.7,8.97911463]
[1751483734466,36.354,2572.2,2571.8,3.94789]
[1751483734765,36.354,2572.2,2572.1,0.77712]
[1751483734967,1.47921,2572.3,2572.2,0.77712]
[1751483735167,1.07808333,2572.3,2572.2,0.77712]
[1751483735665,37.0461,2572.5,2572.4,0.77706]
[1751483735859,38.12434312,2572.5,2572.4,0.77706]
[1751483736265,38.90137312,2572.5,2572.4,0.77706]
[1751483736663,2.54537312,2572.5,2572.4,0.77706]
[1751483736867,37.82213,2572.5,2572.4,0.77706]
[1751483737066,37.0451,2572.5,2572.4,0.77706]
[1751483737466,37.82213,2572.5,2572.4,0.77706]
[1751483738264,38.12524902,2572.5,2572.3,1.9908]
[1751483738459,44.08105463,2572.5,2571.6,1.94319]
[1751483738664,0.77712,2572.2,2572.1,0.77712]
[1751483738869,0.77715,2572.1,2572.0,0.77716]
[1751483739062,37.12915,2572.1,2572.0,0.77716]
[1751483739462,36.352,2572.1,2571.7,0.6596]
[1751483739865,4.5563241,2572.0,2571.9,0.77721]
[1751483740264,0.77722,2571.9,2571.8,0.77722]
[1751483740464,1.85518686,2571.9,2571.8,0.77722]
[1751483740666,1.85517686,2571.9,2571.8,0.77724]
[1751483741861,1.07796686,2571.9,2571.8,0.77724]
[1751483742166,37.0217,2572.0,2571.9,0.77721]
[1751483742360,38.09969205,2572.0,2571.9,0.77721]
[1751483742965,38.87687205,2572.0,2571.9,0.77721]
[1751483743370,38.87688205,2572.0,2571.9,0.77721]
[1751483744767,0.77722,2571.9,2571.8,0.77721]
[1751483745065,1.85521205,2571.9,2571.8,0.77721]
[1751483745962,1.07799205,2571.9,2571.8,0.77721]
[1751483747563,37.42199205,2571.9,2571.8,0.77721]
[1751483749773,37.42199205,2571.9,2571.7,0.77725]
[1751483749970,36.344,2571.9,2571.4,3.32816]
[1751483750170,2.14606,2571.8,2571.7,0.77725]
[1751483750372,0.6646,2571.8,2571.7,0.77725]
[1751483750572,36.34,2571.9,2571.8,0.77724]
[1751483750774,0.77718,2572.0,2571.9,0.77721]
[1751483750970,37.418779,2572.0,2571.9,0.77721]
[1751483751574,1.078779,2572.0,2571.9,0.77721]
[1751483751766,37.417779,2572.0,2571.9,0.77721]
[1751483753171,1.078779,2572.0,2571.9,0.77721]
[1751483753371,37.414779,2572.0,2571.9,0.77721]
[1751483753566,37.414779,2572.0,2571.9,2.13901]
[1751483753975,1.078779,2572.0,2571.9,2.13901]
[1751483754276,1.078779,2572.0,2571.9,9.84746463]
[1751483754473,0.6646,2572.3,2572.2,0.77711]
[1751483754776,0.6436,2572.5,2572.4,0.77705]
[1751483755075,38.72167355,2572.5,2572.4,0.77705]
[1751483755471,39.49869355,2572.5,2572.4,0.77705]
[1751483755668,38.72167355,2572.5,2572.4,0.77705]
[1751483755872,2.38767355,2572.5,2572.4,0.77705]
[1751483756071,38.71967355,2572.5,2572.4,0.77705]
[1751483756278,2.38767355,2572.5,2572.4,0.77705]
[1751483756577,38.71867355,2572.5,2572.4,0.77705]
[1751483756879,2.38767355,2572.5,2572.4,0.77705]
[1751483757277,1.74407355,2572.5,2572.4,0.77705]
[1751483759580,1.07897355,2572.5,2572.4,0.77705]
[1751483760072,0.00583317,2572.7,2572.6,0.77699]
[1751483762477,0.00583317,2572.7,2572.6,1.47869]
[1751483763972,0.00583317,2572.7,2572.6,6.47869]
[1751483764170,3.17e-06,2572.7,2572.6,6.79694421]
[1751483764573,3.17e-06,2572.7,2572.6,1.47869]
[1751483765170,2.32391703,2573.8,2572.6,6.00739359]
[1751483765371,1.3631,2573.9,2573.8,0.77663]
[1751483765776,11.264,2574.2,2574.1,0.77654]
[1751483765980,49.71464,2574.2,2574.0,0.77656]
[1751483766380,1.3479,2574.1,2573.8,0.77661]
[1751483766683,0.7766,2573.9,2573.8,0.78246317]
[1751483767077,0.7766,2573.9,2573.8,0.00583317]
[1751483767277,0.7766,2573.9,2573.8,0.78246317]
[1751483767480,2.13969,2574.0,2573.9,0.7766]
[1751483767877,0.7766,2573.9,2573.8,0.78244317]
[1751483768082,0.7766,2573.9,2573.8,0.00583317]
[1751483768083,2.1397,2573.9,2573.8,0.00583317]
[1751483768483,2.1397,2573.9,2573.8,0.78246317]
[1751483768677,1.3631,2573.9,2573.8,0.78246317]
[1751483768883,2.1397,2573.9,2573.8,0.78246317]
[1751483770387,1.3631,2573.9,2573.8,0.78246317]
[1751483770684,2.1397,2573.9,2573.8,0.78246317]
[1751483771579,1.3631,2573.9,2573.8,0.78246317]
[1751483771983,2.1397,2573.9,2573.8,0.78246317]
[1751483772283,1.3631,2573.9,2573.8,0.78246317]
[1751483772486,2.1397,2573.9,2573.8,0.78246317]
[1751483777382,1.3631,2573.9,2573.8,0.78246317]
[1751483778288,2.1397,2573.9,2573.8,0.78246317]
[1751483778982,2.1397,2573.9,2573.8,0.00583317]
[1751483779179,2.1397,2573.9,2573.8,0.78246317]
[1751483779379,0.77659,2574.0,2573.8,0.78246317]
[1751483779587,0.77659,2574.0,2573.9,0.77658]
[1751483780283,2.19149,2574.0,2573.9,0.77658]
[1751483781486,38.46749,2574.0,2573.9,0.77658]
[1751483785388,39.54254004,2574.0,2573.9,0.77658]
[1751483785786,38.46749,2574.0,2573.9,0.77658]
[1751483786193,0.7766,2573.9,2573.8,0.78244317]
[1751483786393,2.19149,2574.0,2573.9,0.7766]
[1751483786593,39.53206122,2574.0,2573.9,0.7766]
[1751483788696,1.07557122,2574.0,2573.9,4.15693363]
[1751483788998,37.33557122,2574.0,2573.9,4.15693363]
[1751483789391,0.6986,2574.4,2574.3,0.77648]
[1751483789592,38.03399326,2574.4,2574.3,4.15681363]
[1751483789792,38.03399326,2574.4,2573.8,0.00583317]
[1751483789793,1.94121,2574.3,2573.8,0.00583317]
[1751483789988,0.7766,2573.9,2573.8,0.78244317]
[1751483790393,2.42971793,2573.9,2573.8,0.78244317]
[1751483791597,1.72771793,2573.9,2573.8,0.78244317]
[1751483791798,1.07751793,2573.9,2573.8,4.1627768]
[1751483792299,36.257,2574.0,2573.9,0.7766]
[1751483792500,1.07880193,2574.0,2573.9,2.1341]
[1751483792697,1.07880193,2574.0,2573.9,3.477]
[1751483793102,36.253,2574.2,2574.1,0.77654]
[1751483793296,37.33174791,2574.2,2574.1,0.77654]
[1751483793898,1.07874791,2574.2,2574.1,2.14664]
[1751483794392,2.32391703,2574.9,2574.5,0.77642]
[1751483794592,1.07918678,2574.8,2574.7,0.77636]
[1751483795800,37.32818678,2574.8,2574.7,0.77636]
[1751483797197,1.07918678,2574.8,2574.7,0.77636]
[1751483797394,1.07918678,2574.8,2574.7,2.08416]
[1751483801404,37.67543,2575.2,2575.1,0.77624]
[1751483801702,0.77625,2575.1,2575.0,0.77625]
[1751483801901,1.8505339,2575.1,2575.0,0.77625]
[1751483803304,0.77629,2575.0,2574.9,0.77628]
[1751483803496,1.8505739,2575.0,2574.9,0.77628]
[1751483804207,1.8505539,2575.0,2574.9,0.77628]
[1751483804606,1.0742839,2575.0,2574.9,0.77628]
[1751483806806,1.8505539,2575.0,2574.9,0.77628]
[1751483807102,1.0742839,2575.0,2574.9,4.15663363]